Cogmind - Beta 15 @@@ ROGUE MODE // 2025.07.06 @ 15:57:03 Player: StaticNoob Result: Destroyed by G-34 Mercenary with Small Laser Performance ------------- Evolutions (0) 0 Regions Visited (2) 400 Robots Destroyed (15) 75 Value Destroyed (261) 261 Prototype IDs (0) 0 Alien Tech Used (0) 0 Bonus (0) 0 TOTAL SCORE: 736 Bonus ------- None Cogmind --------- Core Integrity 0/250 Matter 264/300 Energy 125/125 System Corruption 0% Temperature Cool (6) Movement Treading (240) Ox1 Location -10/Mines Parts ------- > --- POWER (1) -------- Light Ion Engine > --- PROPULSION (2) --- Light Treads Light Treads > --- UTILITY (2) ------ Improved Heat Sink High-capacity Storage Unit > --- WEAPON (2) ------- Light Assault Rifle Light Assault Rifle > --- INVENTORY (20) --- Light Ion Engine Light Ion Engine Light Treads Compact Wheel Small Storage Unit Medium Battery (150) Large Matter Pod (89) Light Assault Rifle Welding Torch Peak State ------------ > --- POWER ------------ Light Nuclear Core > --- PROPULSION ------- Light Treads Compact Wheel > --- UTILITY ---------- Improved Heat Sink High-capacity Storage Unit > --- WEAPON ----------- EM Pulse Gun Small Laser > --- INVENTORY -------- Light Ion Engine Light Ion Engine Light Treads Light Treads Light Treads Compact Wheel Small Storage Unit Medium Battery Large Matter Pod Welding Torch [Rating: 12] Favorites ----------- Power Light Nuclear Core Engine Light Ion Engine Power Core Light Nuclear Core Propulsion Compact Wheel Treads Light Treads Wheel Compact Wheel Utility High-capacity Storage Unit Device Improved Heat Sink Storage High-capacity Storage Unit Weapon Small Laser Energy Gun Small Laser Ballistic Gun Light Assault Rifle Build | -11 -10 -10 ------- Run | Yrd Mat Min Slots Evolved . | . . . Power . | . . . Propulsion . | . . . Utility . | . . . Weapon . | . . . Parts Attached 19 | 7 5 7 Power 3 | 1 1 1 Engine 2 | 1 . 1 Core 1 | . 1 . Reactor . | . . . Propulsion 6 | 2 1 3 Treads 3 | . 1 2 Leg . | . . . Wheel 3 | 2 . 1 Hover . | . . . Flight . | . . . Utility 4 | 2 2 . Device 2 | 1 1 . Storage 2 | 1 1 . Processor . | . . . Hackware . | . . . Protection . | . . . Artifact . | . . . Weapon 6 | 2 1 3 Energy Gun 3 | 2 1 . Energy Cannon . | . . . Ballistic Gun 3 | . . 3 Ballistic Cannon . | . . . Launcher . | . . . Special Weapon . | . . . Impact Weapon . | . . . Slashing Weapon . | . . . Piercing Weapon . | . . . Special Melee Weapon . | . . . Unidentified Prototypes . | . . . Parts Lost 7 | . 3 4 Power 1 | . . 1 Propulsion 3 | . 1 2 Utility 1 | . 1 . Weapon 2 | . 1 1 Highest Loss Streak 3 | . 3 3 To Critical Strikes . | . . . Average Backups 7 | 2 5 9 Power 1 | . 1 1 Propulsion 2 | 1 2 3 Utility 1 | . . 2 Weapon . | . . . Tool/Special . | . . . Unused Backups 6 | . . 6 Power 1 | . . 1 Propulsion 1 | . . 1 Utility 3 | . . 3 Weapon . | . . . Tool/Special 1 | . . 1 Average Slot Usage (%) 95 | . 98 93 Engine 4 | . 5 3 Core 9 | . 8 10 Treads 9 | . 3 14 Wheel 18 | . 24 13 Device 14 | . 14 14 Storage 14 | . 14 14 Energy Gun 19 | . 26 14 Ballistic Gun 4 | . . 8 Peak Build Rating 12 | 7 11 12 Average Rating 9 | 4 8 10 On Entrance 5 | . 7 10 Naked Turns . | . . . Heaviest Build 51 | 11 51 49 Greatest Support 40 | 32 32 40 Greatest Overweight (x) 3 | . 3 3 Average Overweight (x) 1 | . . 2 Largest Inventory Capacity 20 | 8 20 20 Average Capacity 16 | 7 12 20 Most Carried 12 | 4 9 12 Average Carried 7 | 2 5 9 Final Capacity 20 | 8 20 20 Final Carried 9 | 4 7 9 Class Distribution -------------------- 71% | Mutant 28% | Scavenger-Mutant Dominant Class ---------------- Mutant | -10/Materials Scavenger-Mutant | -10/Mines Resources | -11 -10 -10 ----------- Run | Yrd Mat Min Matter Collected 474 | 158 152 164 Remotely . | . . . Salvage Created 496 | 15 316 165 Parts 31 | 4 14 13 Haulers Intercepted . | . . . Recyclers Shooed 2 | . 1 1 Parts Field Recycled . | . . . Retrieved Matter . | . . . Parts Self-Destructed . | . . . Prevented . | . . . Kills | -11 -10 -10 ------- Run | Yrd Mat Min Combat Hostiles Destroyed 12 | . 6 6 Guns 12 | . 6 6 Classes Destroyed 4 | 1 3 . Tunneler 1 | 1 . . Recycler 2 | . 1 1 Swarmer 8 | . 2 6 Grunt 4 | . 4 . Best Kill Streak 4 | 1 3 4 Combat Bots Only 3 | . 3 3 Max Kills in Single Turn 1 | 1 1 1 Gunslinging . | . . . Exploded . | . . . Melee . | . . . Uniques/NPCs Destroyed . | . . . Combat | -11 -10 -10 -------- Run | Yrd Mat Min Hostile Shots Fired 110 | . 50 60 Missed 28 | . 13 15 Hits 82 | . 37 45 Projectile 82 | . 37 45 Critical Strikes 3 | . 1 2 Damage Taken 966 | . 439 527 Core 259 | . 144 115 Absorbed by Shields . | . . . Core Remaining (%) 100 | 100 . . Volleys Fired 61 | 4 29 28 Largest 2 | 2 2 2 Hottest 80 | 80 80 80 Shots Fired 113 | 8 49 56 Gun 113 | 8 49 56 Cannon . | . . . Launcher . | . . . Special . | . . . Kinetic 26 | . . 26 Thermal 67 | 8 49 10 Explosive . | . . . Electromagnetic 20 | . . 20 Robot Hit Streak 7 | 6 4 7 Robot Miss Streak 5 | 1 5 4 Penetration Max . | . . . Secondary Targets . | . . . Shots Hit Robots 61 | 7 27 27 Core Hits 27 | 2 15 10 Critical Kills . | . . . Critical Parts Destroyed . | . . . Critical Strikes . | . . . Melee Attacks . | . . . Impact . | . . . Slashing . | . . . Piercing . | . . . Sneak Attacks . | . . . Combat Hostiles . | . . . Follow-up Attacks . | . . . Damage Inflicted 681 | 79 312 290 Guns 681 | 79 312 290 Cannons . | . . . Explosions . | . . . Melee . | . . . Ramming . | . . . Kinetic 127 | . . 127 Thermal 422 | 79 312 31 Explosive . | . . . Electromagnetic 132 | . . 132 Impact . | . . . Slashing . | . . . Piercing . | . . . Highest Corruption . | . . . Average Corruption . | . . . Corruption Purged . | . . . Corruption Blocked . | . . . Overload Shots . | . . . Overflow Damage . | . . . Projectiles . | . . . Explosions . | . . . Melee . | . . . Knockbacks . | . . . Impact . | . . . Kinetic . | . . . Secondary . | . . . Self-Inflicted Damage . | . . . Shots . | . . . Rammed . | . . . Targets Rammed . | . . . Kicked . | . . . Crushed . | . . . Highest Temperature 198 | 72 198 11 Average Temperature 69 | 37 80 3 Received Heat Transfer 450 | . 216 234 Siege Activations . | . . . Martial Activations . | . . . Shielding Activations . | . . . Robots Disrupted . | . . . Combat Hostiles . | . . . Robots Corrupted . | . . . Combat Hostiles . | . . . Parts Fried . | . . . Impact Corruptions . | . . . Robots Melted . | . . . Combat Hostiles . | . . . Parts Melted . | . . . Heat Transferred 950 | 175 700 75 Parts Sabotaged . | . . . Parts Stolen . | . . . Parts Stripped . | . . . Power Chain Reactions . | . . . Alert | -11 -10 -10 ------- Run | Yrd Mat Min Maximum Alert Level . | . . . Low Security (%) 100 | 100 100 100 Level 1 . | . . . Level 2 . | . . . Level 3 . | . . . Level 4 . | . . . Level 5 . | . . . High Security . | . . . Max Security . | . . . Peak Influence 75 | 5 70 75 Initial 19 | . . 19 Average 26 | . 29 29 Influence Increases 325 | 5 175 145 Destroy 0b10 Robot/C 240 | . 120 120 Destroy 0b10 Robot/NC 15 | 5 5 5 Destroy Leader 50 | . 30 20 Successful Hack 5 | . 5 . Lose Combat Pursuer 15 | . 15 . Influence Decreases 320 | 5 125 190 Entered New Map 31 | . . 31 Time Decay 219 | 5 95 119 Lost Part 70 | . 30 40 Squads Dispatched 1 | . 1 . Investigation . | . . . Extermination . | . . . Reinforcement 1 | . 1 . Assault . | . . . Garrison . | . . . Intercept . | . . . Searches Triggered . | . . . Construction Impeded . | . . . Haulers Reinforced . | . . . Active Scanning Responses . | . . . Cargo Convoy Interrupts . | . . . Stealth | -11 -10 -10 --------- Run | Yrd Mat Min Distress Signals 3 | . 3 . Communications Jammed . | . . . Distress Signals . | . . . Times Spotted 22 | . 14 8 Peak Tracking Total 5 | . 5 3 Tactical Retreats 1 | . 1 . Traps | -11 -10 -10 ------- Run | Yrd Mat Min Traps Triggered 1 | . 1 . Indirectly . | . . . Trap Hack Attempts . | . . . Triggered . | . . . Disarmed . | . . . Reprogrammed . | . . . Reused . | . . . Traps Extracted . | . . . Installed . | . . . Triggered . | . . . Machines | -11 -10 -10 ---------- Run | Yrd Mat Min Machines Disabled . | . . . Max in Single Turn . | . . . Machines Repaired . | . . . Machines Dismantled . | . . . Machines Sabotaged . | . . . Overloaded Fab Kills . | . . . Hacking | -11 -10 -10 --------- Run | Yrd Mat Min Machines Accessed 2 | . 2 . Terminals 1 | . 1 . Fabricators . | . . . Repair Stations . | . . . Recycling Units 1 | . 1 . Scanalyzers . | . . . Garrison Access . | . . . Total Hacks 6 | . 6 . Successful 1 | . 1 . Failed 5 | . 5 . Catastrophic 1 | . 1 . Database Lockouts . | . . . Manual 3 | . 3 . Terminals 3 | . 3 . Fabricators . | . . . Repair Stations . | . . . Recycling Units 3 | . 3 . Scanalyzers . | . . . Garrison Access . | . . . Terminal Hacks . | . . . Fabricator Hacks . | . . . Repair Station Hacks . | . . . Recycling Unit Hacks . | . . . Scanalyzer . | . . . Garrison Access Hacks . | . . . Unauthorized Hacks 1 | . 1 . Terminals 1 | . 1 . Botnet 1 | . 1 . Fabricators . | . . . Repair Stations . | . . . Recycling Units . | . . . Scanalyzers . | . . . Garrison Access . | . . . Data Cores Recovered . | . . . Used . | . . . Hacking Detections 2 | . 2 . Full Trace Events . | . . . Feedback Events . | . . . Feedback Blocked . | . . . Robot Schematics Acquired . | . . . Robots Built . | . . . Authchips . | . . . Time . | . . . Total Robot Build Rating . | . . . Part Schematics Acquired . | . . . Parts Built . | . . . Authchips . | . . . Time . | . . . Total Part Build Rating . | . . . Parts Repaired . | . . . Time . | . . . Parts Recycled . | . . . Recycled Matter . | . . . Retrieved Matter . | . . . Retrieved Components . | . . . Parts Scanalyzed . | . . . Part Schematics Acquired . | . . . Parts Damaged . | . . . Bothacking | -11 -10 -10 ------------ Run | Yrd Mat Min Used RIF Installer . | . . . Robots Hacked . | . . . Non-combat . | . . . Combat . | . . . Robot Hacks Applied . | . . . Relay Couplers Released . | . . . Fabnet Peak Effective % . | . . . Robots Rewired . | . . . Allies Hacked . | . . . Hacks Repelled . | . . . Allies | -11 -10 -10 -------- Run | Yrd Mat Min Total Allies . | . . . Largest Group . | . . . Highest-Rated Group . | . . . Highest-Rated Ally . | . . . Total Orders . | . . . Ally Attacks . | . . . Total Damage . | . . . Kills . | . . . Allies Corrupted . | . . . Allies Melted . | . . . Intel | -11 -10 -10 ------- Run | Yrd Mat Min Active Infowar (turns) 167 | 3 164 . Seismic 167 | 3 164 . Robot Analysis Total . | . . . Derelict Logs Recovered . | . . . Drone Launches . | . . . Drone Recoveries . | . . . Exploration | -11 -10 -10 ------------- Run | Yrd Mat Min Turns Passed 616 | 64 227 325 Spaces Moved 312 | 39 111 162 Core 2 | 2 . . Treads 6 | . . 6 Legs . | . . . Wheels 304 | 37 111 156 Hover . | . . . Flight . | . . . Fastest Speed 50 | 50 100 130 Average Speed 123 | 97 108 139 Slowest Speed 240 | 100 145 240 Overloaded Moves . | . . . Propulsion Burnouts . | . . . Robots Hopped . | . . . Potential Cave-ins . | . . . Cave-ins Triggered . | . . . Exploration Rate (%) 25 | 4 30 41 Regions Visited 2 Branch Regions 1 Pre-discovered Areas . | . . . Known Exits Taken . | . . . Unknown Exits Taken 2 | 1 1 . Scrap Searched 1 | . . 1 Spaces Dug . | . . . Terrain Destroyed . | . . . Melee . | . . . Projectile . | . . . AOE . | . . . Terrain Rammed . | . . . Walls Destroyed . | . . . Machines Disabled . | . . . Actions | -11 -10 -10 --------- Run | Yrd Mat Min Total 431 | 53 168 210 Wait 20 | . 16 4 Move 310 | 38 110 162 Hop . | . . . Pick Up 13 | 4 4 5 Fast Attach 10 | 7 2 1 Attach 9 | . 4 5 Detach 2 | . 2 . Swap 4 | . 1 3 Drop 2 | . . 2 Fire 61 | 4 29 28 Melee . | . . . Ram . | . . . Kick . | . . . Crush . | . . . Escape Stasis . | . . . Rewire . | . . . Trap . | . . . Miscellaneous . | . . . Route ------- -11/Scrapyard -10/Materials -10/Mines History --------- Turn | Location | Event 26 | -11/Scrapyard | Discovered new exit (range 15) 65 | -11/Scrapyard | Entered Materials 199 | -10/Materials | Discovered new exit (range 16) 272 | -10/Materials | Lost 3 parts (1n1u1w) 278 | -10/Materials | Core integrity fell below 50% 292 | -10/Materials | Entered Mines 300 | -10/Mines | Build established: Mutant 593 | -10/Mines | Core integrity fell below 20% 617 | -10/Mines | Destroyed by G-34 Mercenary with Small Laser Last Messages --------------- 00444_ Acquired Sml. Storage Unit. 00445_ Dropped Sml. Storage Unit. 00447_ Acquired 59 matter. 00450_ Acquired 18 matter. 00453_ Dropped Sml. Laser. 00455_ Acquired Lgt. Assault Rifle. 00457_ K-01 Serf collects debris. 00459_ Acquired 18 matter. 00526_ Lgt. Nuclear Core destroyed. 00534_ S-10 Pest destroyed. 00538_ R-06 Scavenger collects Flight Unit. 00542_ S-10 Pest destroyed. 00549_ Acquired 20 matter. 00551_ Acquired 14 matter. 00552_ Acquired 20 matter. 00556_ Acquired Lgt. Assault Rifle. 00576_ EM Pulse Gun destroyed. 00576_ Critical hit (Burn: +37). 00596_ Lgt. Treads destroyed. 00601_ Com. Wheel destroyed. Map ----- +----------------------------------------------------+ | | | | | | | | | | | | | ?????????????????????????????????????????????????? | | ??????????????????????????????????#########?####?? | | ??????????????????????????????????# #?? | | ??????????????????????????????????# """ """ #?? | | ??????????????????????????????????# """ """ #?? | | ??????????????????????????????????# """ """ #?? | | ??????????????????????????????????# #?? | | ??????????????????????????????????# """ """ #?? | | ??????????????????????????????????# """ """ #?? | | ??????????????????????????????????# """ """ #?? | | ??????????????????????????????????# #?? | | ??????????????????????????????????# """ """ #?? | | ???????????????????????####???????# """ """ #?? | | ??????????????????????## #???????# """ """ #?? | | ?????????????????#???## ???????# #?? | | ???????????????### ### ???????######### ####?? | | ???????????????? t ???????????????# #????? | | ??????????????????? #???????????????# #???## | | ????????????????????## #???????????????# #??## | | ???????????????????## @##?????????????## #### | | ???????????????????# ##????????????#% | | ???????????????????# ##?####??????# ##### | | ???????????????????# ### ##?????# #???# | | ???????????????????## ## #?????# #???## | | ????????????????????###?## #?????# #????## | | ?????????????????????????# ##????# #?????? | | ?????????????????????????# ###??# #?????# | | ??????????????????? ##?#=#????## | | ??????????????????? ### ##??## | | ???????????????????## ###### g #### | | ????????????????????#??????# g | | ???????????????????????????# ### | | ???????????????????????????# #####?## | | ????????????????????????? ##??????# ## # | | ?????????????????????????#### #???????# ### ## | | ????????????????????????????# ???????# #?# #? | | ???????????????????????????# ???????# #? | | ??????????????????????????# ???????##### #? | | ?????????????????????????? ???????????# ## | | ?????????????????????????? ????????????# | | ???????????????????????????? ????????????# | | ?????????????????????????????????????????????##### | | ?????????????????????????????????????????????????? | | ?????????????????????????????????????????????????? | +----------------------------------------------------+ Best States ------------- Heat Dissipation 39 Energy Generation 14 Energy Capacity 160 Matter Stores 300 Matter Capacity 300 Sight Range 16 Terrain Scan Density 10 Evasion (%) 40 Recoil Reduction 2 Item Schematics ----------------- None Robot Schematics ------------------ None Fabricated ------------ Nothing Repaired ---------- Nothing Alien Tech Used ----------------- None Achievements -------------- None Challenges ------------ None Game ------ Seed BombAnalysisMatrix Manual? 0 Play Time 00:07:06 Cumulative 93.2 hours Start 2025.07.06 @ 15:51:53 End 2025.07.06 @ 15:57:03 Sessions 1 Manual Loads 0 Difficulty Rogue Special Mode None Game No. 101 Rogue 101 Adventurer 0 Explorer 0 Win Type - Total 1 Types 0/0/1/0/0/0/0/0/0/0 Lore% 55 Gallery% 55 Achievement% 49 Wizard Run 0 Options --------- Layout 1 ASCII 0 Keyboard 0 Movement Numpad Keybinds 0 Fullscreen 1 Font 24/Smallcaps Map View 50x35 Zoom Use 0% Tactical HUD 1 Map Filters NONE Filters NONE Steam 1 RUN: 35305220-39d5-4b6e-90de-d78a8a0b07a7